Cogmind - Beta 16.1 @@@ ROGUE MODE // 2026.03.01 @ 13:51:11 Player: Kaisercar Result: Self-destructed Performance ------------- Evolutions (2) 1000 Regions Visited (5) 1000 Robots Destroyed (68) 340 Value Destroyed (1748) 1748 Prototype IDs (29) 580 Alien Tech Used (0) 0 Bonus (340) 340 TOTAL SCORE: 5008 Bonus ------- High Alert Combat Kills 40 Aligned with FarCom 300 Cogmind --------- Core Integrity 304/550 Matter 99/300 Energy 280/280 System Corruption 6% Temperature Cool (0) Movement Rolling (220) Ox10 Location -8/Materials Parts ------- > --- POWER (1) -------- Heavy Ion Engine > --- PROPULSION (3) --- Light Treads Armored Treads Wheel > --- UTILITY (4) ------ Huge Storage Unit Core Analyzer Improved Light Armor Plating Hardlight Generator > --- WEAPON (3) ------- Enhanced Autogun Enhanced Autogun Advanced Assault Cannon > --- INVENTORY (25) --- Deuterium Engine Light Nuclear Core Reinforced Deuterium Engine Wheel Compact Matter Pod (150) Machine Analyzer Improved Terrain Scanner Core Shielding Hacking Suite High-powered Tractor Beam PSU Rigger Heavy EM Shotgun Heavy Particle Cannon Minigun High-powered Shotgun Enhanced Autogun Assault Cannon Advanced Assault Cannon Rocket Launcher Mini Grenade Launcher Mini Grenade Launcher Hammer Peak State ------------ > --- POWER ------------ Heavy Ion Engine > --- PROPULSION ------- Light Treads Light Treads Armored Treads > --- UTILITY ---------- Huge Storage Unit Advanced Targeting Computer Improved Light Armor Plating PSU Rigger > --- WEAPON ----------- Improved Assault Rifle Enhanced Autogun Enhanced Autogun > --- INVENTORY -------- Improved Ion Engine Improved Ion Engine Reinforced Ion Engine Heavy Ion Engine Light Nuclear Core Compact Wheel Compact Matter Pod Machine Analyzer Improved Terrain Scanner Core Shielding Light Armor Plating Hardlight Generator Hacking Suite High-powered Tractor Beam Heavy EM Shotgun Heavy Particle Cannon Minigun High-powered Shotgun Enhanced Autogun Enhanced Autogun Advanced Assault Cannon Advanced Assault Cannon Rocket Launcher Mini Grenade Launcher Hammer [Rating: 40] Favorites ----------- Power Ion Engine Engine Ion Engine Propulsion Wheel Treads Light Treads Leg Aluminum Leg Wheel Wheel Utility Huge Storage Unit Device Improved Terrain Scanner Storage Huge Storage Unit Processor Advanced Targeting Computer Protection Improved Light Armor Plating Weapon Enhanced Autogun Energy Gun Medium Laser Energy Cannon Heavy Particle Cannon Ballistic Gun Enhanced Autogun Ballistic Cannon Advanced Assault Cannon Launcher Mini Grenade Launcher Build | -11 -10 -10 -10 -9 -8 ------- Run | Yrd Mat Min Exi Min Mat Slots Evolved 4 | . . . . . 4 Power . | . . . . . . Propulsion 1 | . . . . . 1 Utility 2 | . . . . . 2 Weapon 1 | . . . . . 1 Parts Attached 57 | 7 5 . 1 4 40 Power 4 | 1 . . . 1 2 Engine 4 | 1 . . . 1 2 Core . | . . . . . . Reactor . | . . . . . . Propulsion 15 | 2 2 . . . 11 Treads 5 | . . . . . 5 Leg 2 | 2 . . . . . Wheel 8 | . 2 . . . 6 Hover . | . . . . . . Flight . | . . . . . . Utility 17 | 2 2 . 1 2 10 Device 5 | 1 . . . 1 3 Storage 3 | 1 2 . . . . Processor 2 | . . . . . 2 Hackware . | . . . . . . Protection 7 | . . . 1 1 5 Artifact . | . . . . . . Weapon 21 | 2 1 . . 1 17 Energy Gun 5 | 2 . . . . 3 Energy Cannon 1 | . . . . . 1 Ballistic Gun 11 | . 1 . . . 10 Ballistic Cannon 2 | . . . . . 2 Launcher 2 | . . . . 1 1 Special Weapon . | . . . . . . Impact Weapon . | . . . . . . Slashing Weapon . | . . . . . . Piercing Weapon . | . . . . . . Special Melee Weapon . | . . . . . . Unidentified Prototypes 6 | . . . . . 6 Parts Lost 11 | . . . . . 11 Power 1 | . . . . . 1 Propulsion 6 | . . . . . 6 Utility 2 | . . . . . 2 Weapon 2 | . . . . . 2 Highest Loss Streak 4 | . . . . . 4 To Critical Strikes . | . . . . . . Average Backups 18 | 3 8 14 15 15 23 Power 2 | . 1 1 2 3 3 Propulsion 1 | 1 1 2 . . 1 Utility 5 | . 2 5 6 6 6 Weapon 9 | . 3 5 6 6 12 Tool/Special . | . . . . . . Unused Backups 42 | . 4 2 . 4 32 Power 18 | . . . . 1 17 Propulsion 2 | . 1 . . . 1 Utility 6 | . . 2 . . 4 Weapon 16 | . 3 . . 3 10 Tool/Special . | . . . . . . Average Slot Usage (%) 99 | . 100 100 100 100 98 Engine 11 | . 14 14 14 14 8 Treads 8 | . . . . . 15 Leg 3 | . 22 7 . . . Wheel 15 | . 5 21 28 28 11 Device 9 | . 14 14 9 4 8 Storage 11 | . 14 14 14 14 9 Processor 4 | . . . . . 8 Protection 6 | . . . 4 9 9 Energy Gun 7 | . 18 14 14 14 . Ballistic Gun 18 | . 9 14 14 12 23 Ballistic Cannon 1 | . . . . . 1 Peak Build Rating 40 | 7 8 9 10 18 40 Average Rating 21 | 4 7 8 9 13 31 On Entrance 7 | . 7 8 9 10 12 Avg Prop Armor Cover (%) 10 | . 9 . . . 11 Naked Turns . | . . . . . . Heaviest Build 110 | 15 90 30 32 38 110 Greatest Support 60 | 20 20 20 20 20 60 Greatest Overweight (x) 10 | . 8 1 1 1 10 Average Overweight (x) 1 | . 1 1 1 1 2 Largest Inventory Capacity 25 | 8 25 15 15 15 25 Average Capacity 20 | 6 13 15 15 15 24 Most Carried 25 | 5 12 15 15 15 25 Average Carried 18 | 3 8 14 14 15 23 Final Capacity 25 | 8 15 15 15 15 25 Final Carried 22 | 5 12 15 15 15 22 Class Distribution -------------------- 45% | Mutant 31% | Scavenger-Skirmisher 11% | Skirmisher 11% | Tank Dominant Class ---------------- Mutant | -10/Materials Mutant | -10/Mines Mutant | -10/Exiles Mutant | -9/Mines Scavenger-Skirmisher | -8/Materials Resources | -11 -10 -10 -10 -9 -8 ----------- Run | Yrd Mat Min Exi Min Mat Matter Collected 2355 | 270 54 345 . 115 1571 Remotely 154 | . . . . . 154 Salvage Created 2395 | 130 173 181 . 146 1765 Parts 142 | 7 11 14 . 9 101 Haulers Intercepted 5 | . . . . . 5 Recyclers Shooed 1 | . . 1 . . . Parts Field Recycled . | . . . . . . Retrieved Matter . | . . . . . . Parts Self-Destructed . | . . . . . . Prevented . | . . . . . . Parts Restored . | . . . . . . Kills | -11 -10 -10 -10 -9 -8 ------- Run | Yrd Mat Min Exi Min Mat Combat Hostiles Destroyed 36 | . 4 . . 5 27 Guns 24 | . 4 . . 2 18 Cannons 5 | . . . . . 5 AOE 7 | . . . . 3 4 Classes Destroyed 15 | 2 3 . . 1 9 Worker 5 | . . . . . 5 Builder 1 | . . . . . 1 Tunneler 9 | 2 1 2 . 2 2 Hauler 5 | . . . . . 5 Recycler 5 | 1 . 2 . . 2 Operator 2 | . . . . . 2 Watcher 5 | . 1 . . . 4 Swarmer 5 | . 2 . . 3 . Cutter 3 | . . . . . 3 Grunt 15 | . 2 . . 1 12 Brawler 2 | . . . . 1 1 Sentry 6 | . . . . . 6 Specialist 2 | . . . . . 2 Hunter 2 | . . . . . 2 Heavy 1 | . . . . . 1 Best Kill Streak 6 | 3 2 1 . 3 6 Combat Bots Only 5 | . 2 . . 3 5 Max Kills in Single Turn 3 | 1 2 1 . 3 2 Gunslinging 1 | . 1 . . . . Exploded 3 | . . . . 3 2 Melee . | . . . . . . Uniques/NPCs Destroyed . | . . . . . . Combat | -11 -10 -10 -10 -9 -8 -------- Run | Yrd Mat Min Exi Min Mat Hostile Shots Fired 142 | . 16 2 . 2 122 Missed 39 | . 7 1 . 1 30 Hits 103 | . 9 1 . 1 92 Melee 4 | . . . . . 4 Projectile 99 | . 9 1 . 1 88 AOE 2 | . . . . . 2 Critical Strikes 7 | . . . . . 7 Damage Taken 2197 | . 86 16 . 12 2083 Core 256 | . 10 . . . 246 Absorbed by Shields 148 | . . . . . 148 Core Remaining (%) 98 | 100 . . . 96 . Volleys Fired 158 | 4 20 10 . 11 113 Largest 3 | 2 2 2 . 2 3 Hottest 123 | 90 90 70 . 70 123 Shots Fired 387 | 8 40 20 . 21 298 Gun 338 | 8 40 20 . 20 250 Cannon 44 | . . . . . 44 Launcher 5 | . . . . 1 4 Special . | . . . . . . Kinetic 300 | . 16 10 . 10 264 Thermal 68 | 4 20 10 . 10 24 Explosive 5 | . . . . 1 4 Electromagnetic 14 | 4 4 . . . 6 Robot Hit Streak 19 | 2 10 7 . 4 19 Robot Miss Streak 9 | 1 3 2 . 2 9 Penetration Max . | . . . . . . Secondary Targets 2 | . 1 . . . 1 Max Gunslinging Chain 1 | . 1 . . . 1 Shots Hit Robots 243 | 5 29 15 . 13 181 Core Hits 104 | 3 9 5 . 9 78 Critical Kills . | . . . . . . Critical Parts Destroyed 2 | . . . . . 2 Critical Strikes 6 | . 1 1 . . 4 Burn 3 | . 1 1 . . 1 Destroy 2 | . . . . . 2 Blast 1 | . . . . . 1 Melee Attacks . | . . . . . . Impact . | . . . . . . Slashing . | . . . . . . Piercing . | . . . . . . Sneak Attacks . | . . . . . . Combat Hostiles . | . . . . . . Follow-up Attacks . | . . . . . . Damage Inflicted 4806 | 74 388 207 . 268 3869 Guns 3263 | 52 366 192 . 158 2495 Cannons 583 | . . . . . 583 Explosions 945 | 22 22 . . 110 791 Melee . | . . . . . . Ramming 15 | . . 15 . . . Kinetic 3040 | . 107 91 . 70 2772 Thermal 891 | 48 225 101 . 88 429 Explosive 632 | . . . . 110 522 Electromagnetic 228 | 26 56 . . . 146 Impact . | . . . . . . Slashing . | . . . . . . Piercing . | . . . . . . Highest Corruption 6 | . . . . . 6 Average Corruption 5 | . . . . . 5 Corruption Purged . | . . . . . . Corruption Blocked . | . . . . . . Effects 57 | . . . . . 57 Message Errors 10 | . . . . . 10 Matter Fused 11 | . . . . . 11 Heat Flow Errors 10 | . . . . . 10 Energy Discharges 8 | . . . . . 8 Parts Rejected 1 | . . . . . 1 Data Loss (minor) 8 | . . . . . 8 Data Loss (major) 2 | . . . . . 2 Misfires 1 | . . . . . 1 Alerts 2 | . . . . . 2 Weapon Failures 4 | . . . . . 4 Overload Shots . | . . . . . . Overflow Damage 126 | . . . . 12 114 Projectiles 4 | . . . . . 4 Explosions 122 | . . . . 12 110 Melee . | . . . . . . Knockbacks 1 | . . . . . 1 Impact . | . . . . . . Kinetic 1 | . . . . . 1 Secondary . | . . . . . . Self-Inflicted Damage 117 | . . . . . 117 Shots 2 | . . . . . 2 Rammed . | . . . . . . Targets Rammed 2 | . . 2 . . . Kicked 2 | . . 2 . . . Crushed . | . . . . . . Highest Temperature 260 | 72 93 27 . 61 260 Average Temperature 64 | 38 33 11 . 18 76 Received Heat Transfer 415 | . 27 9 . 6 373 Effects 7 | . . . . . 7 Interference 7 | . . . . . 7 Siege Activations . | . . . . . . Martial Activations . | . . . . . . Shielding Activations . | . . . . . . Robots Disrupted . | . . . . . . Combat Hostiles . | . . . . . . Robots Corrupted . | . . . . . . Combat Hostiles . | . . . . . . Parts Fried 1 | . . . . . 1 Impact Corruptions . | . . . . . . Robots Melted . | . . . . . . Combat Hostiles . | . . . . . . Parts Melted 2 | 1 1 . . . . Heat Transferred 2063 | 124 716 370 . 259 594 Parts Sabotaged . | . . . . . . Parts Stolen . | . . . . . . Parts Stripped . | . . . . . . Power Chain Reactions 3 | 1 1 . . . 1 Alert | -11 -10 -10 -10 -9 -8 ------- Run | Yrd Mat Min Exi Min Mat Maximum Alert Level 2 | . . . . . 2 Low Security (%) 81 | 100 100 100 . 100 68 Level 1 14 | . . . . . 24 Level 2 3 | . . . . . 6 Level 3 . | . . . . . . Level 4 . | . . . . . . Level 5 . | . . . . . . High Security . | . . . . . . Max Security . | . . . . . . Peak Influence 470 | 5 60 20 . 95 470 Initial 16 | . . 16 . . 9 Average 74 | 1 15 1 . 36 118 Influence Increases 1524 | 15 176 50 . 170 1113 Destroy 0b10 Robot/C 720 | . 80 . . 100 540 Destroy 0b10 Robot/NC 165 | 15 10 20 . 10 110 Destroy Leader 200 | . 12 . . 20 168 Successful Hack 72 | . 42 . . . 30 Disable Machine 120 | . . . . 15 105 Destroy Structure 127 | . 2 . . 10 115 Lose Combat Pursuer 120 | . 30 30 . 15 45 Influence Decreases 1064 | 15 134 92 . 144 679 Entered New Map 43 | . . 26 . . 17 Time Decay 850 | 15 134 66 . 144 491 Lost Part 102 | . . . . . 102 Purge Threat 69 | . . . . . 69 Squads Dispatched 8 | . 2 . . . 6 Investigation 1 | . . . . . 1 Extermination . | . . . . . . Reinforcement 7 | . 2 . . . 5 Assault . | . . . . . . Garrison . | . . . . . . Intercept . | . . . . . . Searches Triggered . | . . . . . . Construction Impeded . | . . . . . . Haulers Reinforced . | . . . . . . Active Scanning Responses . | . . . . . . Cargo Convoy Interrupts . | . . . . . . Stealth | -11 -10 -10 -10 -9 -8 --------- Run | Yrd Mat Min Exi Min Mat Distress Signals 4 | . 2 . . 1 1 Communications Jammed . | . . . . . . Distress Signals . | . . . . . . Times Spotted 61 | . 13 4 . 3 41 Peak Tracking Total 8 | . 6 2 . 2 8 Tactical Retreats 5 | . 1 1 . 1 2 Traps | -11 -10 -10 -10 -9 -8 ------- Run | Yrd Mat Min Exi Min Mat Traps Triggered 2 | . . . . . 2 Indirectly . | . . . . . . Trap Hack Attempts . | . . . . . . Triggered . | . . . . . . Disarmed . | . . . . . . Reprogrammed . | . . . . . . Reused . | . . . . . . Traps Extracted . | . . . . . . Installed . | . . . . . . Triggered . | . . . . . . Objects Rigged 8 | . . . . 1 7 Exploded 8 | . . . . 1 7 Machines | -11 -10 -10 -10 -9 -8 ---------- Run | Yrd Mat Min Exi Min Mat Machines Disabled 8 | . . . . 1 7 Max in Single Turn 2 | . . . . 1 2 Machines Repaired . | . . . . . . Machines Dismantled . | . . . . . . Machines Sabotaged . | . . . . . . Overloaded Fab Kills . | . . . . . . Hacking | -11 -10 -10 -10 -9 -8 --------- Run | Yrd Mat Min Exi Min Mat Machines Accessed 16 | . 3 . 2 . 11 Terminals 11 | . 3 . . . 8 Fabricators . | . . . . . . Repair Stations 1 | . . . . . 1 Recycling Units 1 | . . . . . 1 Scanalyzers 1 | . . . . . 1 Garrison Access . | . . . . . . Total Hacks 37 | . 9 . 4 . 24 Successful 19 | . 6 . 4 . 9 Failed 17 | . 3 . . . 14 Catastrophic 4 | . 2 . . . 2 Database Lockouts 1 | . . . . . 1 Manual 22 | . 9 . 1 . 12 Terminals 26 | . 9 . . . 17 Fabricators . | . . . . . . Repair Stations 2 | . . . . . 2 Recycling Units 1 | . . . . . 1 Scanalyzers 4 | . . . . . 4 Garrison Access . | . . . . . . Terminal Hacks 9 | . 2 . 4 . 3 Record 3 | . . . 3 . . Part Schematic 2 | . 2 . . . . Unreport Threat 1 | . . . . . 1 Registered Prototypes 1 | . . . . . 1 Zone Layout 1 | . . . . . 1 Proto ID Catalog 1 | . . . 1 . . Fabricator Hacks . | . . . . . . Repair Station Hacks 1 | . . . . . 1 Scan Component 1 | . . . . . 1 Recycling Unit Hacks 1 | . . . . . 1 Retrieve Components 1 | . . . . . 1 Scanalyzer 3 | . . . . . 3 Retrieve Study 3 | . . . . . 3 Garrison Access Hacks . | . . . . . . Unauthorized Hacks 5 | . 4 . . . 1 Terminals 5 | . 4 . . . 1 Botnet 3 | . 2 . . . 1 Skim 2 | . 2 . . . . Fabricators . | . . . . . . Repair Stations . | . . . . . . Recycling Units . | . . . . . . Scanalyzers . | . . . . . . Garrison Access . | . . . . . . Data Cores Recovered . | . . . . . . Used . | . . . . . . Hacking Detections 13 | . 3 . . . 10 Full Trace Events 1 | . . . . . 1 Feedback Events . | . . . . . . Feedback Blocked . | . . . . . . Robot Schematics Acquired . | . . . . . . Robots Built . | . . . . . . Authchips . | . . . . . . Time . | . . . . . . Total Robot Build Rating . | . . . . . . Part Schematics Acquired 2 | . 2 . . . . Parts Built . | . . . . . . Authchips . | . . . . . . Time . | . . . . . . Total Part Build Rating . | . . . . . . Part Studies Acquired 3 | . . . . . 3 Parts Repaired . | . . . . . . Time . | . . . . . . Parts Recycled . | . . . . . . Recycled Matter . | . . . . . . Retrieved Matter . | . . . . . . Retrieved Components 10 | . . . . . 10 Parts Scanalyzed . | . . . . . . Part Schematics Acquired . | . . . . . . Parts Damaged . | . . . . . . Bothacking | -11 -10 -10 -10 -9 -8 ------------ Run | Yrd Mat Min Exi Min Mat Used RIF Installer . | . . . . . . Robots Hacked . | . . . . . . Non-combat . | . . . . . . Combat . | . . . . . . Robot Hacks Applied . | . . . . . . Relay Couplers Released . | . . . . . . Fabnet Peak Effective % . | . . . . . . Robots Rewired . | . . . . . . Allies Hacked . | . . . . . . Hacks Repelled . | . . . . . . Allies | -11 -10 -10 -10 -9 -8 -------- Run | Yrd Mat Min Exi Min Mat Total Allies . | . . . . . . Largest Group . | . . . . . . Highest-Rated Group . | . . . . . . Highest-Rated Ally . | . . . . . . Total Orders . | . . . . . . Ally Attacks . | . . . . . . Total Damage . | . . . . . . Kills . | . . . . . . Allies Corrupted . | . . . . . . Allies Melted . | . . . . . . Intel | -11 -10 -10 -10 -9 -8 ------- Run | Yrd Mat Min Exi Min Mat Active Infowar (turns) 3112 | 15 453 717 157 . 1770 Terrain 1770 | . . . . . 1770 Seismic 1342 | 15 453 717 157 . . Robot Analysis Total . | . . . . . . Derelict Logs Recovered 2 | . . 1 . 1 . Drone Launches . | . . . . . . Drone Recoveries . | . . . . . . Exploration | -11 -10 -10 -10 -9 -8 ------------- Run | Yrd Mat Min Exi Min Mat Turns Passed 4316 | 85 454 717 252 456 2352 Spaces Moved 2615 | 53 257 622 257 426 1000 Core 7 | 7 . . . . . Treads 389 | . . . . . 389 Legs 322 | 46 191 85 . . . Wheels 1897 | . 66 537 257 426 611 Hover . | . . . . . . Flight . | . . . . . . Fastest Speed 50 | 50 95 95 95 95 95 Average Speed 132 | 110 139 107 95 95 172 Slowest Speed 325 | 120 200 190 95 95 325 Overloaded Moves . | . . . . . . Propulsion Burnouts . | . . . . . . Robots Hopped . | . . . . . . Potential Cave-ins 2 | . . . . . 2 Cave-ins Triggered 1 | . . . . . 1 Exploration Rate (%) 56 | 4 51 94 61 51 76 Regions Visited 5 Branch Regions 3 Pre-discovered Areas 1 | . . . 1 . . Known Exits Taken . | . . . . . . Unknown Exits Taken 5 | 1 1 1 1 1 . Scrap Searched 3 | . . 1 . 2 . Spaces Dug 15 | . . . . . 15 Terrain Destroyed 162 | 3 2 . . 10 147 Melee . | . . . . . . Projectile 21 | . . . . . 21 AOE 141 | 3 2 . . 10 126 Terrain Rammed . | . . . . . . Walls Destroyed . | . . . . . . Machines Disabled . | . . . . . . Actions | -11 -10 -10 -10 -9 -8 --------- Run | Yrd Mat Min Exi Min Mat Total 3207 | 68 316 648 266 460 1449 Wait 199 | . 13 6 2 7 171 Move 2609 | 52 256 621 256 425 999 Hop . | . . . . . . Pick Up 82 | 5 11 5 3 4 54 Fast Attach 16 | 7 2 . 1 . 6 Attach 15 | . . . . . 15 Detach 2 | . 1 . . . 1 Swap 55 | . 6 2 . 6 41 Drop 60 | . 7 2 4 6 41 Fire 158 | 4 20 10 . 11 113 Melee . | . . . . . . Ram . | . . . . . . Kick 2 | . . 2 . . . Crush . | . . . . . . Escape Stasis 1 | . . . . . 1 Rewire . | . . . . . . Trap 8 | . . . . 1 7 Miscellaneous . | . . . . . . Route ------- -11/Scrapyard -10/Materials (discovered 2 exits: [*Mat] / [*Min]) -10/Mines (discovered 3 exits: [*Mat x2] / *Exi) -10/Exiles -9/Mines -8/Materials (discovered 4 exits: [*Fac x3] / [*Sto]) History --------- Turn | Location | Event 8 | -11/Scrapyard | Discovered new exit (range 14) 86 | -11/Scrapyard | Entered Materials 191 | -10/Materials | Discovered new exit (range 15) 336 | -10/Materials | Build established: Mutant 497 | -10/Materials | Discovered new exit (range 9) 540 | -10/Materials | Entered Mines 547 | -10/Mines | Received a Rocket Launcher from a helpful Derelict 666 | -10/Mines | Discovered new exit (range 10) 833 | -10/Mines | Deemed a non-threat by the Exiles lab entrance 834 | -10/Mines | Discovered new exit (range 5) 868 | -10/Mines | Learned 2 Materials zone layouts 873 | -10/Mines | Discovered new exit (range 5) 1257 | -10/Mines | Entered Exiles 1289 | -10/Exiles | Met 8R-AWN 1303 | -10/Exiles | Met EX-HEX 1329 | -10/Exiles | Met EX-BIN 1341 | -10/Exiles | Met EX-DEC 1347 | -10/Exiles | Learned location of Zion (-6) 1377 | -10/Exiles | Aligned with FarCom system 1377 | -10/Exiles | Given EX-Vault access code 1400 | -10/Exiles | Opened EX-Vault 1406 | -10/Exiles | Found PSU Rigger 1436 | -10/Exiles | Warned to stay clear of 0b10 Research branches 1499 | -10/Exiles | Discovered new exit (range 14) 1509 | -10/Exiles | Left Exiles lab with PSU Rigger 1509 | -10/Exiles | Entered Mines 1540 | -9/Mines | Met a Derelict bent on vengeance 1610 | -9/Mines | Discovered new exit (range 7) 1786 | -9/Mines | Assembled infested the area 1791 | -9/Mines | Assisted by a Guerilla fighting off Assembled 1894 | -9/Mines | Learned 2 Materials zone layouts 1965 | -9/Mines | Entered Materials 1965 | -8/Materials | Evolved 4 slots: Propulsion x1, Utility x2, Weapon x1 2196 | -8/Materials | Discovered new exit (range 15) 2310 | -8/Materials | Lost 4 parts (1p2n1u) 2313 | -8/Materials | Discovered new exit (range 5) 2495 | -8/Materials | Crushed by falling debris 2601 | -8/Materials | Build established: Scavenger-Skirmisher 3383 | -8/Materials | Discovered new exit (range 16) 3746 | -8/Materials | Central database locked down 4220 | -8/Materials | Discovered new exit (range 11) 4225 | -8/Materials | Lost 4 parts (1n1u2w) 4231 | -8/Materials | Build established: Tank 4317 | -8/Materials | Self-destructed Last Messages --------------- 04245_ U-05 Engineer lays Concrete. 04245_ K-01 Serf collects debris. 04246_ Acquired 29 matter. 04246_ U-05 Engineer lays Concrete. 04247_ U-05 Engineer builds a Wall. 04247_ U-05 Engineer lays Concrete. 04249_ K-01 Serf collects debris. 04250_ Acquired Lgt. Nuclear Core. 04250_ K-01 Serf collects debris. 04251_ U-05 Engineer lays Concrete. 04254_ U-05 Engineer builds a Wall. 04254_ U-05 Engineer lays Concrete. 04255_ Acquired 14 matter. 04256_ U-05 Engineer lays Concrete. 04257_ K-01 Serf collects debris. 04258_ U-05 Engineer lays Concrete. 04266_ Connecting with Terminal... 04267_ U-05 Engineer lays Concrete. 04279_ System corrupted: Substantial component data lost. Map ----- +----------------------------------------------------+ | ?????????# """ # # #? | | ?????????? # "#####+####? | | ?????????? """ #]/ ! ### | | ?????????# """ = #############""### | | ?????????# """ ! ####### #### ##### | | ?????????# [= ##???###??###??## ! | | ?????????########" [! #??????????????# ### | | ??????????????# #?#######?????### ### | | ??????????????# < ##?# #???????# #?# | | ??????????????# % T#?#" #???????# ### | | ??????????######"## ""#?#T ######### T## | | ??????????# | #g ###?#" ## ### | | ??????????# # #???# ## + | | ??????????# + #???# """ ## ### | | ??????????# # #???# """ ## ########?# | | ??????????# % # #???# """ ## ##????#??# | | ??????????#######?# #???# ## #??????#### | | ???????????????#####+###### ## ######## ! | | ???????????????# ## ## ! | | ???????????????# ## ## ! | | ???????????????# ####+#### | | ???????????????# """ """ #?# #??############ | | ???????????????# """ """ #?# #???# # | | ???????????????# """ """ #?# #???# # | | ???????????????# #?# #???# | | ???????????????# @ #?# #???# """ | | ???????????????############# ##### """ | | ????????????????????????? # w + """ | | ????????????????????????? # ##### # # | | ????????????????????????? # #???# | | ????????????????????????? # #???#### "" | | ????# ### ?????????????? #"R | | ????# + ???s????????????#####"" | | ????# ### ### ????????????????????# " | | ????# #?# #?# ???s????????????????# | | #####/### #######+##????s???????????????### | | # # ????????????????????# | | # " # ????????????????????# | | # "" # ##+##??????????????????#?#"" | | # "" # # ??????????????????#?#"" | | # """ # # ????????????????????#"" | | # "" + # ????????????????????# | | # """ # # ????????????????????### | | # """ # # ??????????????????????? | | # """ ########## #""" ??????????????#???????? | | # " #?????#### #"Y ??????????????????????? | | # #?????# #""" ??????????????????????? | | #########?????# # ??????????????????????? | | ??????????#######+#######??????????????????????? | | ??????????# #??????????????????????? | +----------------------------------------------------+ Best States ------------- Heat Dissipation 31 Energy Generation 14 Energy Capacity 280 Matter Stores 300 Matter Capacity 300 Sight Range 16 Terrain Scan Range 16 Terrain Scan Density 10 Armor Coverage 225 Core Shielding 20 Evasion (%) 55 Targeting Accuracy 8 Core Analysis 6 Recoil Reduction 3 Item Schematics ----------------- Hcp. Storage Unit | -10/Materials | Hacked Huge Storage Unit | -10/Materials | Hacked Robot Schematics ------------------ None Fabricated ------------ Nothing Repaired ---------- Nothing Studied --------- Wheel | -8/Materials | Hacked Com. Wheel | -8/Materials | Hacked Minigun | -8/Materials | Hacked Alien Tech Used ----------------- None Achievements -------------- None Challenges ------------ None Game ------ Seed SwarmMomentumDissipator Manual? 0 Play Time 00:33:15 Cumulative 104.4 hours Start 2026.03.01 @ 11:45:34 End 2026.03.01 @ 13:51:11 Sessions 3 Manual Loads 0 Difficulty Rogue Special Mode None Game No. 131 Rogue 56 Adventurer 75 Explorer 0 Win Type - Total 4 Types 4/0/0/0/0/0/0/0/0/0 Lore% 52 Gallery% 50 Achievement% 41 Wizard Run 0 Options --------- Layout 2 ASCII 0 Keyboard 0 Movement Numpad Keybinds 0 Fullscreen 2 Font 24/Smallcaps Map View 50x44 Zoom Use 0% Tactical HUD 1 Map Filters NONE Filters NONE Steam 1 RUN: 5d756601-d2dd-43f4-968d-5e5b4e618aae